bitfinex-derivatives/quotes_SOLF0:USTF0_20250221
["timestamp","ask_amount","ask_price","bid_price","bid_amount"]
[1740179190140,0.04034405,168.31,168.28,0.03975869]
[1740179190341,0.9894812,168.39,168.26,5.9459]
[1740179190640,0.03760897,168.31,168.28,0.0409286]
[1740179190835,5.9445,168.31,168.26,5.9459]
[1740179191042,5.98995932,168.31,168.28,0.04475232]
[1740179195546,0.04545932,168.31,168.28,0.04475232]
[1740179195738,5.9446,168.3,168.28,0.04475232]
[1740179196640,0.04545932,168.31,168.28,0.04475232]
[1740179196834,5.9449,168.29,168.28,0.04475232]
[1740179197234,0.04545932,168.31,168.19,83.52571337]
[1740179197448,15.26684735,168.3,168.19,83.52571337]
[1740179197944,15.26684735,168.3,168.19,75.77281337]
[1740179198245,15.26684735,168.3,168.19,73.92001337]
[1740179198547,0.04122899,168.26,168.23,0.0447292]
[1740179199440,0.04122899,168.26,168.23,5.9916292]
[1740179200451,0.04122899,168.26,168.23,0.0447292]
[1740179203462,5.98722899,168.26,168.23,0.0447292]
[1740179203963,0.04122899,168.26,168.23,0.0447292]
[1740179205769,5.98722899,168.26,168.23,0.0447292]
[1740179207163,0.04122899,168.26,168.23,0.0447292]
[1740179207364,5.98732899,168.26,168.23,0.0447292]
[1740179211666,0.04122899,168.26,168.23,0.0447292]
[1740179211862,1.8832,168.33,168.23,0.0447292]
[1740179212070,1.7171,168.35,168.23,0.0447292]
[1740179212368,194.0,168.36,168.21,3.6173]
[1740179212369,5.9433,168.34,168.21,3.6173]
[1740179212564,194.0,168.36,168.21,3.6173]
[1740179212764,5.9429,168.35,168.29,5.9448]
[1740179213162,0.04202874,168.34,168.3,0.04437883]
[1740179214469,5.9435,168.33,168.3,0.04437883]
[1740179220774,5.9442,168.31,168.3,0.04437883]
[1740179221271,5.9452,168.29,168.23,7.6837]
[1740179221466,15.26684735,168.31,168.21,36.26775566]
[1740179221677,15.26684735,168.28,168.21,34.52905566]
[1740179222072,5.946,168.26,168.21,34.52905566]
[1740179222370,5.946,168.26,168.22,0.0455003]
[1740179222371,0.04371481,168.25,168.22,0.0455003]
[1740179226078,5.99011481,168.25,168.22,0.0455003]
[1740179226375,0.04371481,168.25,168.22,0.0455003]
[1740179226572,5.9467,168.24,168.22,0.0455003]
[1740179226769,0.04371481,168.25,168.22,0.0455003]
[1740179228081,5.947,168.23,168.22,0.0455003]
[1740179230783,0.04371481,168.25,168.17,5.9491]
[1740179230983,5.9481,168.21,168.17,5.9491]
[1740179231180,1.8378,168.26,168.17,5.9491]
[1740179231386,5.9481,168.21,168.17,5.9491]
[1740179231983,5.99199039,168.21,168.17,5.98790103]
[1740179232287,5.9481,168.2,168.17,0.03880103]
[1740179234883,0.04389039,168.21,168.17,0.03880103]
[1740179235088,5.9484,168.2,168.17,0.03880103]
[1740179235791,5.9486,168.19,168.17,0.03880103]
[1740179235990,0.04389039,168.21,168.17,0.03880103]
[1740179236490,5.9485,168.19,168.17,0.03880103]
[1740179238790,5.9485,168.19,168.08,8.16261391]
[1740179238791,9.7802024,168.19,168.08,8.16261391]
[1740179238992,9.7802024,168.19,168.07,9.7802024]
[1740179239393,5.9497,168.16,168.07,9.7802024]
[1740179240189,0.03870009,168.13,168.1,0.04213152]
[1740179240988,0.03870009,168.13,168.12,5.9509]
[1740179257098,0.03870009,168.13,168.11,5.9512]
[1740179257300,0.03870009,168.13,168.1,0.04213152]
[1740179258498,0.03870009,168.13,168.12,5.9509]
[1740179262106,0.03870009,168.13,168.11,5.9512]
[1740179263008,0.03870009,168.13,168.1,0.04213152]
[1740179264407,9.81890249,168.13,168.1,0.04213152]
[1740179264707,5.9512,168.12,168.1,0.04213152]
[1740179265004,5.9513,168.11,168.1,0.04213152]
[1740179272315,3.7064,168.12,168.05,5.9533]
[1740179272616,5.952,168.09,168.04,0.76717205]
[1740179272818,5.952,168.09,168.04,6.72077205]
[1740179273612,0.03958368,168.08,168.05,0.04340734]
[1740179274515,0.03958368,168.08,168.05,5.99660734]
[1740179275215,0.03958368,168.08,168.05,0.04340734]
[1740179275412,9.7802024,168.07,168.05,0.04340734]
[1740179277614,0.03958368,168.08,168.05,0.04340734]
[1740179278115,0.03958368,168.08,168.07,5.9527]
[1740179279318,0.03958368,168.08,168.06,5.9528]
[1740179280119,0.03958368,168.08,168.07,5.9527]
[1740179280816,8.368e-05,168.08,168.07,5.9527]
[1740179283816,8.368e-05,168.08,168.07,15.7329024]
[1740179293829,8.368e-05,168.08,168.07,15.9329024]
[1740179297127,18.29,168.17,168.16,5.9495]
[1740179297324,9.0823,168.17,168.16,5.9495]
[1740179297529,8.19648315,168.17,168.16,5.9495]
[1740179299130,8.315e-05,168.17,168.16,5.9495]
[1740179299633,1.24e-05,168.18,168.17,5.9492]
[1740179300026,9.7802024,168.3,168.15,137.07928616]
[1740179300231,5.419,168.32,168.21,9.7802024]
[1740179300536,5.419,168.32,168.24,9.7802024]
[1740179301035,5.419,168.32,168.27,5.9456]
[1740179301237,0.03947394,168.3,168.26,0.03790186]
[1740179301641,0.03947394,168.3,168.28,5.9452]
[1740179302132,0.03947394,168.3,168.29,5.9449]
[1740179309738,0.03947394,168.3,168.26,0.03790186]
[1740179310933,5.98427394,168.3,168.26,0.03790186]
[1740179311237,0.03947394,168.3,168.26,0.03790186]
[1740179313442,15.29515211,168.3,168.26,0.03790186]
[1740179314044,0.03947394,168.3,168.26,0.03790186]
[1740179314646,15.29515211,168.3,168.26,0.03790186]
[1740179315246,5.9452,168.29,168.26,0.03790186]
[1740179319344,15.29515211,168.3,168.26,0.03790186]
[1740179319643,15.29515211,168.3,168.19,67.10098759]
[1740179319842,15.25567817,168.3,168.19,67.10098759]
[1740179320045,5.946,168.27,168.21,5.9476]
[1740179320346,15.25567817,168.3,168.21,5.9476]
[1740179320940,0.0436735,168.27,168.24,0.04113538]
[1740179322448,5.9462,168.26,168.24,0.04113538]
[1740179323745,0.0436735,168.27,168.24,0.04113538]
[1740179339664,5.9893735,168.27,168.24,0.04113538]
[1740179343064,5.9463,168.25,168.24,0.04113538]
[1740179343266,5.9463,168.25,168.19,67.10098759]
[1740179343663,5.9463,168.25,168.19,73.04928759]
[1740179344373,5.9463,168.25,168.2,0.04068047]
[1740179344966,5.9463,168.25,168.2,5.98868047]
[1740179345166,7.7531,168.26,168.2,0.04068047]
[1740179345569,7.7531,168.26,168.2,5.98868047]
[1740179345868,5.9465,168.25,168.2,0.04068047]
[1740179346362,1.8071,168.26,168.2,0.04068047]
[1740179346869,5.9465,168.25,168.2,0.04068047]
[1740179347466,5.9465,168.25,168.2,5.98878047]
[1740179347767,7.7532,168.26,168.2,5.98878047]
[1740179348268,1.8071,168.26,168.2,5.98878047]
[1740179348468,5.9464,168.25,168.2,5.98878047]
[1740179348668,1.8071,168.26,168.2,0.04068047]
[1740179349372,1.8071,168.26,168.21,5.9476]
[1740179350469,7.7531,168.26,168.21,5.9476]
[1740179351267,5.9466,168.25,168.2,0.04068047]
[1740179353169,5.9466,168.25,168.2,5.98858047]
[1740179353467,5.9466,168.25,168.2,0.04068047]
[1740179355069,5.9466,168.25,168.2,5.98878047]
[1740179361275,5.9478,168.21,168.2,0.04068047]
[1740179362376,5.9486,168.19,168.14,38.60055566]
[1740179363576,0.03932634,168.18,168.15,0.03781033]
[1740179367280,5.9512,168.12,168.09,8.16261391]
[1740179367473,9.7742956,168.11,168.09,8.16261391]
[1740179367670,9.7742956,168.11,168.08,32.65045566]
[1740179367979,5.952,168.09,168.08,32.65045566]
[1740179368173,15.7262956,168.09,168.08,32.65045566]
[1740179370271,15.7262956,168.09,168.07,0.22527984]
[1740179370469,9.7742956,168.09,168.07,0.22527984]
[1740179370974,15.7262956,168.09,168.07,0.22527984]
[1740179372177,9.7742956,168.09,168.07,0.22527984]
[1740179372985,15.7262956,168.09,168.07,0.22527984]
[1740179375688,5.9524,168.08,168.07,0.22527984]
[1740179383090,5.9533,168.06,168.02,5.9543]
[1740179384001,9.7742956,168.07,168.02,5.9543]
[1740179384302,5.9534,168.05,168.01,5.9547]
[1740179384702,5.9534,168.05,168.0,5.9551]
[1740179388504,0.04308479,168.06,168.02,9.7742956]
[1740179390204,0.04308479,168.06,168.04,5.9534]
[1740179390403,0.04308479,168.06,168.02,9.7742956]
[1740179390603,0.04308479,168.06,168.05,5.9534]
[1740179394003,0.04308479,168.06,168.02,15.7286956]
[1740179394404,0.04308479,168.06,168.02,9.7742956]
[1740179394905,0.04308479,168.06,168.04,5.9537]
[1740179395603,0.04308479,168.06,168.02,9.7742956]
[1740179395911,0.04308479,168.06,168.03,5.954]
[1740179398010,0.04308479,168.06,168.02,15.7285956]
[1740179399514,0.04308479,168.06,168.03,5.9539]
[1740179400709,0.04308479,168.06,168.02,15.7286956]
[1740179402411,0.04308479,168.06,168.03,5.9541]
[1740179402812,0.04308479,168.06,168.02,9.7742956]
[1740179403008,0.04308479,168.06,168.02,15.7284956]
[1740179405612,0.04308479,168.06,168.02,15.7285956]
[1740179405916,0.04308479,168.06,168.02,5.9543]
[1740179407419,0.04308479,168.06,168.0,8.16261391]
[1740179408119,0.04308479,168.06,168.03,5.9541]
[1740179409821,0.04308479,168.06,168.0,5.66946173]
[1740179410020,5.99618479,168.06,168.01,5.9547]
[1740179410223,0.04308479,168.06,168.01,5.9547]
[1740179412422,5.99618479,168.06,168.01,5.9547]
[1740179412818,0.04308479,168.06,168.0,5.9551]
[1740179413323,5.9536,168.05,167.99,5.9554]
[1740179415125,0.04308479,168.06,167.98,3.4906]
[1740179415323,0.04308479,168.06,167.98,1.7138]
[1740179415524,9.7742956,168.04,167.96,8.16261391]
[1740179415729,5.9551,168.01,167.96,8.16261391]
[1740179416221,0.03816234,168.02,167.96,8.16261391]
[1740179416421,5.9551,168.01,167.96,14.11921391]
[1740179416625,0.03816234,168.02,167.95,97.42604531]
[1740179417923,5.955,168.01,167.95,103.38294531]
[1740179418618,5.9553,168.0,167.95,97.42604531]
[1740179419124,5.9553,168.0,167.95,64.77558965]
[1740179419927,0.03816234,168.02,167.95,64.77558965]
[1740179420127,5.955,168.01,167.95,70.73248965]
[1740179420328,0.03816234,168.02,167.95,64.77558965]
[1740179420731,22.55,168.1,167.99,9.7742956]
[1740179420732,1.8902,168.09,167.99,9.7742956]
[1740179420927,1.8902,168.09,168.0,1.7789]
[1740179421128,14.61,168.1,168.02,9.7742956]
[1740179421322,14.61,168.1,168.05,9.7742956]
[1740179421529,14.61,168.1,168.07,9.7742956]
[1740179421720,5.952,168.09,168.04,9.7742956]
[1740179421920,0.03819131,168.07,168.04,9.7742956]
[1740179422627,0.03819131,168.07,168.03,0.03816234]
[1740179427426,5.9537,168.05,168.03,0.03816234]
[1740179427625,0.03819131,168.07,168.03,0.03816234]
[1740179428027,5.9538,168.04,168.03,0.03816234]
[1740179428424,5.9537,168.05,168.03,0.03816234]
[1740179428630,0.03819131,168.07,168.03,0.03816234]
[1740179429732,5.9538,168.04,168.03,0.03816234]
[1740179434332,15.34656872,168.07,167.97,5.9561]
[1740179434532,5.9553,168.0,167.97,5.9561]
[1740179435437,5.99678617,168.0,167.96,5.9565]
[1740179436137,0.04148617,168.0,167.95,66.65178965]
[1740179436333,0.04148617,168.0,167.97,5.9562]
[1740179436638,0.04148617,168.0,167.95,66.65178965]
[1740179437729,5.99668617,168.0,167.95,66.65178965]
[1740179439336,0.04148617,168.0,167.95,72.60868965]
[1740179440334,5.99678617,168.0,167.95,66.65178965]
[1740179441833,0.04148617,168.0,167.95,66.65178965]
[1740179442235,0.04148617,168.0,167.95,72.60848965]
[1740179446340,0.04148617,168.0,167.96,5.9566]
[1740179448041,11.2,168.05,167.97,9.80704091]
[1740179448441,5.9542,168.03,167.97,5.956]
[1740179448637,9.80704091,168.04,167.95,66.65178965]
[1740179448837,9.80704091,168.01,167.89,32.65045566]
[1740179449039,0.04015355,167.97,167.93,5.99888617]
[1740179450645,0.04015355,167.97,167.93,0.04148617]
[1740179450838,0.04015355,167.97,167.94,5.9573]
[1740179451241,0.04015355,167.97,167.93,0.04148617]
[1740179451543,0.04015355,167.97,167.93,5.99888617]
[1740179451742,0.04015355,167.97,167.93,0.04148617]
[1740179451941,0.04015355,167.97,167.94,5.9571]
[1740179453745,0.04015355,167.97,167.95,5.9567]
[1740179455150,0.04015355,167.97,167.93,0.04148617]
[1740179455848,0.04015355,167.97,167.95,5.9569]
[1740179456248,0.04015355,167.97,167.93,0.04148617]
[1740179457144,0.04015355,167.97,167.95,5.9567]
[1740179457748,0.04015355,167.97,167.96,5.9566]
[1740179458351,9.80704091,168.02,167.99,5.9555]
[1740179458550,203.80704091,168.05,167.99,5.9555]
[1740179458844,203.80704091,168.05,167.91,11.64214091]
[1740179459051,203.80704091,168.05,167.99,5.9553]
[1740179459446,0.03777692,168.04,167.99,5.9553]
[1740179459646,0.03777692,168.04,168.0,0.0427135]
[1740179462444,0.03777692,168.04,168.0,5.9978135]
[1740179465152,0.03777692,168.04,168.0,0.0427135]
[1740179465359,0.03777692,168.04,168.03,5.9541]
[1740179466254,8.36,168.1,168.03,9.80704091]
[1740179466450,8.36,168.1,168.07,5.9527]
[1740179466856,5.9509,168.13,168.07,5.9527]
[1740179467154,9.80704091,168.17,168.06,9.80704091]
[1740179467553,0.03763698,168.13,168.1,0.04277551]
[1740179470164,0.03763698,168.13,168.1,5.99437551]
[1740179470467,0.03763698,168.13,168.1,0.04277551]
[1740179470965,5.9512,168.12,168.1,0.04277551]
[1740179471163,9.80704091,168.12,168.1,0.04277551]
[1740179471572,9.80704091,168.12,168.02,32.65045566]
[1740179471766,5.9527,168.07,168.02,32.65045566]
[1740179472264,5.952,168.09,168.02,32.65045566]
[1740179472464,9.80704091,168.13,168.02,32.65045566]
[1740179472763,0.04082198,168.09,168.06,0.04146273]
[1740179472958,5.951,168.12,168.06,5.99426273]
[1740179473154,0.0397583,168.09,168.06,5.99426273]
[1740179475462,0.0397583,168.09,168.06,0.04146273]
[1740179476267,5.9920583,168.09,168.06,0.04146273]
[1740179479868,0.0397583,168.09,168.06,0.04146273]
[1740179480766,0.0397583,168.09,167.99,3.7302]
[1740179480767,15.30333758,168.07,167.99,3.7302]
[1740179480965,5.954,168.04,167.99,9.6857]
[1740179481365,15.30333758,168.07,167.99,9.6857]
[1740179481563,5.9541,168.03,167.99,3.7302]
[1740179481970,5.9541,168.03,167.99,0.0351784]
[1740179481971,5.9545,168.02,167.99,0.0351784]
[1740179486169,0.0414223,168.03,167.99,0.0351784]
[1740179488476,0.0414223,168.03,168.01,5.9548]
[1740179489179,0.0414223,168.03,168.02,5.9545]
[1740179489775,0.0414223,168.03,168.01,5.9548]
[1740179489977,0.0414223,168.03,167.99,0.0351784]
[1740179490579,0.0414223,168.03,168.0,5.955]
[1740179492477,0.0414223,168.03,168.01,5.9547]
[1740179493681,0.0414223,168.03,168.02,5.9545]
[1740179499287,3.6986,168.12,168.0,1.8198]
[1740179499473,3.6986,168.12,168.05,5.9533]
[1740179500080,5.9514,168.11,168.05,5.9533]
[1740179500483,0.04563216,168.1,168.06,0.03875321]
[1740179503484,0.04563216,168.1,168.06,5.99175321]
[1740179505977,0.04563216,168.1,168.06,0.03875321]
[1740179506683,0.04563216,168.1,168.07,5.9526]
[1740179507979,0.04563216,168.1,168.08,5.9521]
[1740179508886,0.04563216,168.1,168.09,5.952]
[1740179521095,0.04563216,168.1,168.08,9.79528326]
[1740179521096,5.9476,168.22,168.16,5.9493]
[1740179521791,13.46098326,168.25,168.13,9.79528326]
[1740179521992,3.6657,168.25,168.15,9.79528326]
[1740179522198,0.03995035,168.21,168.17,0.04426721]
[1740179522386,0.03995035,168.21,168.17,9.83955047]
[1740179522896,0.03995035,168.21,168.17,0.04426721]
[1740179524391,5.98775035,168.21,168.17,0.04426721]
[1740179524896,0.03995035,168.21,168.17,0.04426721]
[1740179529402,0.03995035,168.21,168.17,5.99336721]
[1740179532197,0.03995035,168.21,168.18,5.9486]
[1740179532700,0.03995035,168.21,168.19,9.79528326]
[1740179533201,0.03995035,168.21,168.2,5.9481]
[1740179534403,5.9451,168.29,168.23,5.9468]
[1740179535102,1.866,168.31,168.21,9.79528326]
[1740179535304,5.9447,168.3,168.24,5.9466]
[1740179535500,0.04285709,168.28,168.24,5.98905883]
[1740179536495,0.04285709,168.28,168.24,0.04245883]
[1740179542498,0.04285709,168.28,168.24,5.98885883]
[1740179543503,0.04285709,168.28,168.25,5.9463]
[1740179544098,0.04285709,168.28,168.24,5.98895883]
[1740179546599,0.04285709,168.28,168.24,0.04245883]
[1740179546799,5.9462,168.26,168.24,0.04245883]
[1740179549398,0.04285709,168.28,168.24,0.04245883]
[1740179549603,5.98825709,168.28,168.24,0.04245883]
[1740179552405,0.04285709,168.28,168.24,0.04245883]
[1740179552604,0.04285709,168.28,168.24,5.98905883]
[1740179555013,0.04285709,168.28,168.24,0.04245883]
[1740179555206,0.04285709,168.28,168.26,5.946]
[1740179556613,0.04285709,168.28,168.25,5.946]
[1740179559113,0.04285709,168.28,168.24,0.04245883]
[1740179559314,0.04285709,168.28,168.26,5.9458]
[1740179561016,0.04285709,168.28,168.25,9.79528326]
[1740179561213,0.04285709,168.28,168.26,5.9457]
[1740179563420,0.04285709,168.28,168.24,0.04245883]
[1740179567018,0.04285709,168.28,168.24,5.98895883]
[1740179570526,0.04285709,168.28,168.25,5.9463]
[1740179571025,0.04285709,168.28,168.24,0.04245883]
[1740179571224,0.04285709,168.28,168.24,5.98885883]
[1740179572724,0.04285709,168.28,168.24,9.83774209]
[1740179573529,0.04285709,168.28,168.25,5.9461]
[1740179578930,0.04285709,168.28,168.26,5.9459]
[1740179579237,0.04285709,168.28,168.24,9.83774209]
[1740179580942,0.04285709,168.28,168.26,5.9458]
[1740179584145,0.04285709,168.28,168.24,9.83774209]
[1740179584344,0.04285709,168.28,168.27,5.9456]
[1740179584941,0.04285709,168.28,168.27,15.74088326]
[1740179585142,5.709e-05,168.28,168.27,15.74088326]
[1740179585446,205.22877429,168.47,168.27,17.71528326]
[1740179585645,205.22877429,168.47,168.36,9.79528326]
[1740179585646,1.8346,168.44,168.36,9.79528326]
[1740179586042,1.8346,168.44,168.27,7.92]
[1740179586043,9.79528326,168.43,168.27,7.92]
[1740179586245,5.942,168.38,168.32,9.79528326]
[1740179586546,0.0438829,168.37,168.33,0.04026952]
[1740179587048,0.0438829,168.37,168.27,15.74068326]
[1740179587049,5.9432,168.34,168.27,15.74068326]
[1740179587447,5.9432,168.34,168.27,9.79528326]
[1740179587747,1.8201,168.37,168.27,9.79528326]
[1740179587948,1.8201,168.37,168.3,9.79528326]
[1740179588137,0.04287804,168.34,168.3,9.84030832]
[1740179589050,0.04287804,168.34,168.31,5.9441]
[1740179592950,0.04287804,168.34,168.3,9.84030832]
[1740179593247,1.8943,168.4,168.33,9.79528326]
[1740179593453,9.79528326,168.46,168.33,9.79528326]
[1740179593651,5.9404,168.42,168.35,5.9426]
[1740179594350,5.9404,168.42,168.37,0.04291766]
[1740179594550,0.03842238,168.4,168.37,0.04291766]
[1740179601358,0.03842238,168.4,168.38,5.9415]
[1740179601658,0.03842238,168.4,168.37,9.83820092]
[1740179602061,0.03842238,168.4,168.38,5.9415]
[1740179604360,0.03842238,168.4,168.37,9.83820092]
[1740179604660,0.03842238,168.4,168.39,5.9414]
[1740179611770,1.8474,168.48,168.38,3.6143]
[1740179611965,1.8474,168.48,168.43,9.79528326]
[1740179612166,1.8474,168.48,168.44,5.9395]
[1740179612567,1.8474,168.48,168.43,9.79528326]
[1740179613067,0.04420579,168.47,168.44,0.04353143]
[1740179613670,0.04420579,168.47,168.45,9.79528326]
[1740179613874,0.04420579,168.47,168.46,5.9389]
[1740179616872,9.01,168.53,168.46,9.79528326]
[1740179617171,9.01,168.53,168.52,15.73208326]
[1740179617473,5.9344,168.59,168.52,15.73208326]
[1740179618070,0.03907428,168.57,168.54,0.04504197]
[1740179618270,0.03907428,168.57,168.51,5.9369]
[1740179618574,0.03907428,168.57,168.54,0.04097154]
[1740179620471,5.9358,168.55,168.54,0.04097154]
[1740179620676,9.79528326,168.55,168.45,1.8899]
[1740179620875,9.79528326,168.53,168.45,1.8899]
[1740179621078,5.9372,168.51,168.45,5.9392]
[1740179621272,9.79528326,168.53,168.42,82.41256614]
[1740179621472,3.7232,168.54,168.42,82.41256614]
[1740179621677,5.9378,168.5,168.44,5.9394]
[1740179621974,5.97745742,168.5,168.46,0.03793694]
[1740179623176,0.03965742,168.5,168.46,0.03793694]
[1740179623772,5.97725742,168.5,168.46,0.03793694]
[1740179624577,0.03965742,168.5,168.46,0.03793694]
[1740179625676,5.97725742,168.5,168.46,0.03793694]
[1740179627075,0.03965742,168.5,168.46,0.03793694]
[1740179628079,5.97735742,168.5,168.46,0.03793694]
[1740179628277,0.03965742,168.5,168.46,0.03793694]
[1740179628681,5.9381,168.49,168.46,0.03793694]
[1740179629982,0.03965742,168.5,168.46,0.03793694]
[1740179630281,5.97735742,168.5,168.46,0.03793694]
[1740179636785,0.03965742,168.5,168.46,0.03793694]
[1740179639385,0.03965742,168.5,168.46,5.97683694]
[1740179639687,0.03965742,168.5,168.46,0.03793694]
[1740179640384,0.03965742,168.5,168.46,5.97673694]
[1740179640591,0.03965742,168.5,168.46,0.03793694]
[1740179642393,0.03965742,168.5,168.46,5.97673694]
[1740179644495,0.03965742,168.5,168.47,5.9384]
[1740179645198,0.03965742,168.5,168.47,9.74710609]
[1740179645393,0.03965742,168.5,168.49,5.9379]
[1740179647899,9.09,168.56,168.49,9.74710609]
[1740179648102,9.09,168.56,168.53,9.74710609]
[1740179648497,9.5459,168.61,168.55,9.74710609]
[1740179648999,0.04152816,168.6,168.56,0.0433764]
[1740179649202,0.04152816,168.6,168.57,9.74710609]
[1740179652100,0.04152816,168.6,168.57,15.68190609]
[1740179653300,0.04152816,168.6,168.57,9.74710609]
[1740179657105,0.04152816,168.6,168.56,5.9786764]
[1740179657304,0.04152816,168.6,168.56,0.0433764]
[1740179657505,5.97562816,168.6,168.56,0.0433764]
[1740179657708,0.04152816,168.6,168.56,0.0433764]
[1740179657906,5.97552816,168.6,168.56,0.0433764]
[1740179658406,0.04152816,168.6,168.56,0.0433764]
[1740179660304,5.97552816,168.6,168.56,0.0433764]
[1740179660603,0.04152816,168.6,168.56,0.0433764]
[1740179661079,9.78863425,168.6,168.56,0.0433764]
[1740179661238,9.74710609,168.58,168.5,5.9374]
[1740179661432,3.6122,168.61,168.5,5.9374]
[1740179661433,9.74710609,168.56,168.5,5.9374]
[1740179661938,5.9361,168.54,168.49,5.9378]
[1740179662135,9.74710609,168.57,168.47,3.6294]
[1740179662337,3.6122,168.61,168.49,0.04269809]
[1740179662338,0.03995188,168.52,168.49,0.04269809]
[1740179662539,15.68210609,168.58,168.48,9.74710609]
[1740179662739,0.03905587,168.55,168.51,0.0380751]
[1740179663931,5.9364,168.54,168.51,0.0380751]
[1740179664138,0.03905587,168.55,168.51,0.0380751]
[1740179664848,5.97485587,168.55,168.51,0.0380751]
[1740179667046,5.9364,168.54,168.51,0.0380751]
[1740179669047,5.9366,168.53,168.51,0.0380751]
[1740179669950,5.9368,168.52,168.51,0.0380751]
[1740179673849,9.74710609,168.5,168.42,72.61728288]
[1740179674325,5.939,168.46,168.43,5.9398]
[1740179674715,5.97921282,168.46,168.43,5.98328928]
[1740179675118,5.97921282,168.46,168.43,0.04348928]
[1740179678319,5.9395,168.45,168.43,0.04348928]
[1740179679619,5.9393,168.45,168.43,0.04348928]
[1740179679819,0.04021282,168.46,168.43,0.04348928]
[1740179680219,5.9396,168.44,168.43,0.04348928]
[1740179680516,0.04021282,168.46,168.43,0.04348928]
[1740179680715,0.04021282,168.46,168.44,9.74710609]
[1740179681020,0.04021282,168.46,168.45,5.9393]
[1740179681816,9.74710609,168.58,168.44,9.74710609]
[1740179682016,201.9,168.6,168.49,9.74710609]
[1740179682422,5.9366,168.53,168.49,9.74710609]
[1740179682920,5.9822013,168.53,168.49,9.78816943]
[1740179684636,5.9822013,168.53,168.49,15.72596943]
[1740179685138,5.9822013,168.53,168.49,5.97886334]
[1740179686534,5.9821013,168.53,168.49,5.97886334]
[1740179689025,0.0456013,168.53,168.49,5.97886334]
[1740179689324,5.9369,168.52,168.49,5.97886334]
[1740179696029,0.0456013,168.53,168.49,0.04106334]
[1740179696229,5.9822013,168.53,168.5,5.9374]
[1740179696630,0.0456013,168.53,168.49,0.04106334]
[1740179699424,0.0456013,168.53,168.51,5.937]
[1740179699627,7.49,168.59,168.52,15.22242571]
[1740179700638,3.5908,168.65,168.56,5.9353]
[1740179700830,0.04391023,168.57,168.56,5.9353]
[1740179701027,5.9326,168.64,168.56,5.9353]
[1740179701229,0.04093889,168.58,168.55,0.03865777]
[1740179701533,0.04202365,168.58,168.57,5.935]
[1740179701934,0.04202365,168.58,168.55,0.03865777]
[1740179706034,5.9354,168.56,168.55,0.03865777]
[1740179706236,15.26444936,168.58,168.48,5.9382]
[1740179706436,15.22242571,168.58,168.48,5.9382]
[1740179706641,201.9,168.63,168.48,5.9382]
[1740179706642,9.74714996,168.56,168.48,5.9382]
[1740179706839,5.9362,168.54,168.45,3.5332]
[1740179707338,0.04101508,168.51,168.48,0.04015709]
[1740179710243,0.04101508,168.51,168.48,5.97835709]
[1740179712043,0.04101508,168.51,168.5,5.9375]
[1740179712442,5.9351,168.57,168.48,0.04015709]
[1740179712642,7.7972,168.6,168.53,5.9362]
[1740179713043,1.863,168.6,168.48,15.22901838]
[1740179713352,5.9351,168.57,168.51,5.9371]
[1740179713554,1.863,168.6,168.51,5.9371]
[1740179713853,0.0375409,168.56,168.52,0.04020544]
[1740179715051,0.0375409,168.56,168.52,5.97690544]
[1740179716857,0.0375409,168.56,168.53,5.9364]
[1740179717657,0.0375409,168.56,168.52,0.04020544]
[1740179718154,0.0375409,168.56,168.52,5.51310544]
[1740179718361,0.0375409,168.56,168.55,5.9358]
[1740179719457,0.0375409,168.56,168.52,5.51310544]
[1740179719854,3.5622,168.65,168.53,15.22901838]
[1740179720057,3.5622,168.65,168.57,5.9349]
[1740179720959,0.04400634,168.63,168.59,0.04273178]
[1740179721353,5.97700634,168.63,168.59,0.04273178]
[1740179723060,7.15,168.69,168.62,15.22901838]
[1740179723260,7.15,168.69,168.65,15.22901838]
[1740179724158,7.18779964,168.69,168.68,15.22901838]
[1740179724357,7.18779964,168.69,168.65,15.27040946]
[1740179724554,7.18779964,168.69,168.68,5.9312]
[1740179724756,4.34719964,168.69,168.68,5.9312]
[1740179725759,0.03779964,168.69,168.68,5.9312]
[1740179726161,0.03779964,168.69,168.66,5.9318]
[1740179726662,0.03779964,168.69,168.65,0.04139108]
[1740179727457,5.96869964,168.69,168.65,0.04139108]
[1740179727759,0.03779964,168.69,168.65,0.04139108]
[1740179731161,0.03779964,168.69,168.65,5.97349108]
[1740179731960,0.03779964,168.69,168.68,5.9312]
[1740179732162,0.03779964,168.69,168.65,0.04139108]
[1740179733469,5.9314,168.68,168.65,0.04139108]
[1740179735069,5.9316,168.67,168.65,0.04139108]
[1740179735265,0.03779964,168.69,168.65,0.04139108]
[1740179735669,5.9313,168.68,168.65,0.04139108]